[Event "*** Titled Tuesday Blitz"]
[Site "Chess.com"]
[Date "2020.12.01"]
[Round "1"]
[White "QuintilianoR"]
[Black "AcsinteMatei"]
[Result "1-0"]
[WhiteElo "2650"]
[BlackElo "2318"]
[TimeControl "180+1"]
[EndTime "10:06:47 PST"]
[Termination "QuintilianoR won by resignation"]

1. d4 {[%clk 0:03:00.4]} 1... Nf6 {[%clk 0:02:56.5]} 2. c4 {[%clk 0:03:00]} 2...
e6 {[%clk 0:02:55.8]} 3. Nf3 {[%clk 0:02:59.1]} 3... a6 {[%clk 0:02:52.5]} 4.
Nc3 {[%clk 0:02:58.3]} 4... b5 {[%clk 0:02:40.3]} 5. cxb5 {[%clk 0:02:55.2]}
5... axb5 {[%clk 0:02:39.8]} 6. Nxb5 {[%clk 0:02:56.1]} 6... Ba6 {[%clk
0:02:39]} 7. Nc3 {[%clk 0:02:55.7]} 7... c5 {[%clk 0:02:35.7]} 8. e3 {[%clk
0:02:52.5]} 8... Bxf1 {[%clk 0:02:34.5]} 9. Kxf1 {[%clk 0:02:53.4]} 9... cxd4
{[%clk 0:02:32.6]} 10. Nxd4 {[%clk 0:02:54.3]} 10... Bb4 {[%clk 0:02:29]} 11.
Bd2 {[%clk 0:02:53.1]} 11... O-O {[%clk 0:02:28.5]} 12. g3 {[%clk 0:02:52.5]}
12... d5 {[%clk 0:02:28.4]} 13. Kg2 {[%clk 0:02:51.2]} 13... e5 {[%clk
0:02:27.8]} 14. Nf3 {[%clk 0:02:50.5]} 14... Nc6 {[%clk 0:02:21]} 15. a3 {[%clk
0:02:45.6]} 15... Bc5 {[%clk 0:01:58.7]} 16. Rc1 {[%clk 0:02:42]} 16... e4
{[%clk 0:01:57.8]} 17. Nh4 {[%clk 0:02:33.9]} 17... Ne5 {[%clk 0:01:55.1]} 18.
Nb5 {[%clk 0:02:03.4]} 18... Nd3 {[%clk 0:01:51.7]} 19. Rc2 {[%clk 0:01:55.7]}
19... Qd7 {[%clk 0:01:46.4]} 20. Nd4 {[%clk 0:01:47]} 20... Bxd4 {[%clk
0:01:43.8]} 21. exd4 {[%clk 0:01:47.9]} 21... g5 {[%clk 0:01:43.5]} 22. Bxg5
{[%clk 0:01:41.6]} 22... Ra6 {[%clk 0:01:32.2]} 23. Be3 {[%clk 0:01:34]} 23...
Kh8 {[%clk 0:01:19.9]} 24. h3 {[%clk 0:01:29.5]} 24... Rg8 {[%clk 0:01:19.1]}
25. Kh2 {[%clk 0:01:27.4]} 25... Ne8 {[%clk 0:01:00.3]} 26. Rd2 {[%clk
0:00:57.1]} 26... f5 {[%clk 0:00:52.1]} 27. Rxd3 {[%clk 0:00:55.3]} 27... exd3
{[%clk 0:00:52.4]} 28. Qxd3 {[%clk 0:00:55.9]} 28... Rf6 {[%clk 0:00:52.6]} 29.
Bf4 {[%clk 0:00:55.4]} 29... Ng7 {[%clk 0:00:47.8]} 30. Be5 {[%clk 0:00:54.9]}
30... Rh6 {[%clk 0:00:47.6]} 31. Nxf5 {[%clk 0:00:51.2]} 31... Rh5 {[%clk
0:00:28.7]} 32. g4 {[%clk 0:00:49.1]} 32... Rg5 {[%clk 0:00:20.5]} 33. Bxg7+
{[%clk 0:00:48.2]} 33... R5xg7 {[%clk 0:00:18.6]} 34. Nxg7 {[%clk 0:00:49.1]}
34... Rxg7 {[%clk 0:00:19.4]} 35. Rc1 {[%clk 0:00:47.4]} 35... Rf7 {[%clk
0:00:18.5]} 36. Qg3 {[%clk 0:00:46.9]} 36... Qb5 {[%clk 0:00:16.4]} 37. Qe5+
{[%clk 0:00:44.2]} 37... Kg8 {[%clk 0:00:16.3]} 38. Rc8+ {[%clk 0:00:43.5]} 1-0

[Event "*** Titled Tuesday Blitz"]
[Site "Chess.com"]
[Date "2020.12.01"]
[Round "1"]
[White "Enriquack"]
[Black "Natalya_Buksa"]
[Result "0-1"]
[WhiteElo "2278"]
[BlackElo "2587"]
[TimeControl "180+1"]
[EndTime "10:06:47 PST"]
[Termination "Natalya_Buksa won by resignation"]

1. e4 {[%clk 0:02:58.2]} 1... c5 {[%clk 0:02:58.9]} 2. Nf3 {[%clk 0:02:57.6]}
2... Nc6 {[%clk 0:02:58.7]} 3. Bb5 {[%clk 0:02:57.7]} 3... g6 {[%clk 0:02:58.4]}
4. O-O {[%clk 0:02:57.7]} 4... Bg7 {[%clk 0:02:58.4]} 5. d3 {[%clk 0:02:58.3]}
5... e5 {[%clk 0:02:55]} 6. a3 {[%clk 0:02:57.6]} 6... Nge7 {[%clk 0:02:55.1]}
7. b4 {[%clk 0:02:57.8]} 7... d6 {[%clk 0:02:54.6]} 8. Bg5 {[%clk 0:02:53.7]}
8... f6 {[%clk 0:02:48.5]} 9. Be3 {[%clk 0:02:53.6]} 9... cxb4 {[%clk
0:02:44.8]} 10. axb4 {[%clk 0:02:53.1]} 10... O-O {[%clk 0:02:45.3]} 11. Bc4+
{[%clk 0:02:37.2]} 11... Kh8 {[%clk 0:02:44.7]} 12. b5 {[%clk 0:02:37.2]} 12...
Na5 {[%clk 0:02:39.7]} 13. Ba2 {[%clk 0:02:34.4]} 13... b6 {[%clk 0:02:39.3]}
14. Nc3 {[%clk 0:02:31.9]} 14... f5 {[%clk 0:02:33.1]} 15. Bd2 {[%clk
0:02:24.1]} 15... Ng8 {[%clk 0:02:23.8]} 16. Ng5 {[%clk 0:02:16.2]} 16... Nh6
{[%clk 0:02:22.1]} 17. Qf3 {[%clk 0:02:06.1]} 17... fxe4 {[%clk 0:02:10.1]} 18.
Qxe4 {[%clk 0:02:05.1]} 18... Bf5 {[%clk 0:02:10.4]} 19. Qd5 {[%clk 0:01:53.9]}
19... Qe7 {[%clk 0:02:09.7]} 20. Rae1 {[%clk 0:01:45.5]} 20... Nb7 {[%clk
0:02:08.8]} 21. Nge4 {[%clk 0:01:35.5]} 21... Ng4 {[%clk 0:02:02.7]} 22. Bg5
{[%clk 0:01:27.9]} 22... Qc7 {[%clk 0:01:51.6]} 23. h3 {[%clk 0:01:24.4]} 23...
Nf6 {[%clk 0:01:50.5]} 24. Bxf6 {[%clk 0:01:23.3]} 24... Bxf6 {[%clk 0:01:50.6]}
25. Qc6 {[%clk 0:01:16.4]} 25... Rac8 {[%clk 0:01:45.9]} 26. Qxc7 {[%clk
0:00:54.8]} 26... Rxc7 {[%clk 0:01:45.7]} 27. Nd5 {[%clk 0:00:55.4]} 27... Rxc2
{[%clk 0:01:44.3]} 28. Bc4 {[%clk 0:00:42.7]} 28... Bd8 {[%clk 0:01:41]} 29. Ne3
{[%clk 0:00:30.7]} 29... Rb2 {[%clk 0:01:37.5]} 30. Ra1 {[%clk 0:00:28.5]} 30...
Bxe4 {[%clk 0:01:08.5]} 31. dxe4 {[%clk 0:00:28.1]} 31... Bg5 {[%clk 0:01:09]}
32. Ng4 {[%clk 0:00:21.5]} 32... Na5 {[%clk 0:01:03.8]} 33. Bd3 {[%clk
0:00:20.5]} 33... h5 {[%clk 0:00:51.2]} 34. Nh2 {[%clk 0:00:18.7]} 34... Rd2
{[%clk 0:00:46]} 35. Rad1 {[%clk 0:00:16.9]} 35... Rfxf2 {[%clk 0:00:39.2]} 36.
Nf3 {[%clk 0:00:14.9]} 36... Rxf1+ {[%clk 0:00:37.9]} 37. Rxf1 {[%clk
0:00:13.5]} 37... Be3+ {[%clk 0:00:36.2]} 0-1

[Event "*** Titled Tuesday Blitz"]
[Site "Chess.com"]
[Date "2020.12.01"]
[Round "1"]
[White "Bulldog167"]
[Black "GM4life"]
[Result "0-1"]
[WhiteElo "2620"]
[BlackElo "2329"]
[TimeControl "180+1"]
[EndTime "10:06:48 PST"]
[Termination "GM4life won by checkmate"]

1. Nf3 {[%clk 0:02:58.4]} 1... d5 {[%clk 0:02:59.3]} 2. g3 {[%clk 0:02:57.6]}
2... Nf6 {[%clk 0:02:58.5]} 3. Bg2 {[%clk 0:02:57.6]} 3... e6 {[%clk 0:02:58.8]}
4. O-O {[%clk 0:02:56.9]} 4... Be7 {[%clk 0:02:59.7]} 5. c4 {[%clk 0:02:56.9]}
5... O-O {[%clk 0:03:00.6]} 6. b3 {[%clk 0:02:56.6]} 6... c5 {[%clk 0:02:59.5]}
7. Bb2 {[%clk 0:02:54.8]} 7... Nc6 {[%clk 0:03:00.1]} 8. e3 {[%clk 0:02:42.8]}
8... d4 {[%clk 0:02:58.9]} 9. exd4 {[%clk 0:02:42.3]} 9... cxd4 {[%clk
0:02:59.8]} 10. d3 {[%clk 0:02:39.7]} 10... e5 {[%clk 0:02:58.8]} 11. Re1 {[%clk
0:02:36.1]} 11... Nd7 {[%clk 0:02:57.9]} 12. Ba3 {[%clk 0:02:22.8]} 12... a5
{[%clk 0:02:40.3]} 13. Bxe7 {[%clk 0:02:01.6]} 13... Qxe7 {[%clk 0:02:41.2]} 14.
Nbd2 {[%clk 0:01:52.5]} 14... f5 {[%clk 0:02:37.9]} 15. Nxe5 {[%clk 0:01:41.9]}
15... Ncxe5 {[%clk 0:02:20.4]} 16. f4 {[%clk 0:01:41.3]} 16... Qd6 {[%clk
0:02:05.4]} 17. fxe5 {[%clk 0:01:38.8]} 17... Nxe5 {[%clk 0:02:06.3]} 18. Bd5+
{[%clk 0:01:22.6]} 18... Kh8 {[%clk 0:02:03.6]} 19. Nf3 {[%clk 0:01:19.9]} 19...
Ng4 {[%clk 0:01:57.4]} 20. Ng5 {[%clk 0:00:52.5]} 20... Ne3 {[%clk 0:01:36.4]}
21. Qh5 {[%clk 0:00:46.6]} 21... h6 {[%clk 0:01:05.8]} 22. Nf7+ {[%clk
0:00:43.7]} 22... Rxf7 {[%clk 0:01:05.8]} 23. Qxf7 {[%clk 0:00:40.9]} 23... Bd7
{[%clk 0:01:05.8]} 24. Re2 {[%clk 0:00:32.3]} 24... Rf8 {[%clk 0:01:05.3]} 25.
Qh5 {[%clk 0:00:30.4]} 25... f4 {[%clk 0:01:05.8]} 26. Rf2 {[%clk 0:00:10.9]}
26... Bg4 {[%clk 0:01:05.4]} 27. Qh4 {[%clk 0:00:11.2]} 27... g5 {[%clk
0:01:04.5]} 28. Qxg4 {[%clk 0:00:01.5]} 28... Nxg4 {[%clk 0:01:03.7]} 29. Rf3
{[%clk 0:00:01.4]} 29... fxg3 {[%clk 0:01:03]} 30. Rxg3 {[%clk 0:00:01.7]} 30...
Ne3 {[%clk 0:01:01.7]} 31. Re1 {[%clk 0:00:02.1]} 31... Nxd5 {[%clk 0:01:01.5]}
32. cxd5 {[%clk 0:00:02.1]} 32... Qxd5 {[%clk 0:01:01.9]} 33. Re4 {[%clk
0:00:02.7]} 33... Rf4 {[%clk 0:01:00.5]} 34. Re8+ {[%clk 0:00:01.8]} 34... Kg7
{[%clk 0:01:00.5]} 35. Rg2 {[%clk 0:00:02]} 35... Qf5 {[%clk 0:00:58.3]} 36. Re1
{[%clk 0:00:02]} 36... Qxd3 {[%clk 0:00:56.9]} 37. Rge2 {[%clk 0:00:02.6]} 37...
Kg6 {[%clk 0:00:53.6]} 38. Re6+ {[%clk 0:00:02.4]} 38... Kh5 {[%clk 0:00:53.8]}
39. R6e2 {[%clk 0:00:01.2]} 39... Rg4+ {[%clk 0:00:52.6]} 40. Kf2 {[%clk
0:00:01.2]} 40... Qf5# {[%clk 0:00:52.2]} 0-1

[Event "*** Titled Tuesday Blitz"]
[Site "Chess.com"]
[Date "2020.12.01"]
[Round "1"]
[White "GameOverBro"]
[Black "rududuyk"]
[Result "1-0"]
[WhiteElo "2539"]
[BlackElo "2201"]
[TimeControl "180+1"]
[EndTime "10:06:48 PST"]
[Termination "GameOverBro won on time"]

1. e4 {[%clk 0:03:00.9]} 1... e6 {[%clk 0:03:00.1]} 2. d4 {[%clk 0:03:00.6]}
2... d5 {[%clk 0:03:00.5]} 3. Nd2 {[%clk 0:03:00.1]} 3... Nf6 {[%clk 0:02:59.9]}
4. e5 {[%clk 0:03:00.2]} 4... Nfd7 {[%clk 0:03:00.5]} 5. f4 {[%clk 0:03:00.2]}
5... c5 {[%clk 0:02:59.2]} 6. c3 {[%clk 0:03:00.9]} 6... Nc6 {[%clk 0:02:56.5]}
7. Ndf3 {[%clk 0:03:01.3]} 7... cxd4 {[%clk 0:02:52.3]} 8. cxd4 {[%clk
0:03:00.8]} 8... a5 {[%clk 0:02:52.3]} 9. a3 {[%clk 0:02:53.7]} 9... a4 {[%clk
0:02:42.6]} 10. Bd3 {[%clk 0:02:53.6]} 10... Nb6 {[%clk 0:02:40]} 11. Ne2 {[%clk
0:02:53.5]} 11... Na5 {[%clk 0:02:33.5]} 12. Be3 {[%clk 0:02:50.3]} 12... Nb3
{[%clk 0:02:31.8]} 13. Rb1 {[%clk 0:02:50]} 13... Bd7 {[%clk 0:02:18.3]} 14. O-O
{[%clk 0:02:47.9]} 14... g6 {[%clk 0:02:16.8]} 15. Nc1 {[%clk 0:02:36.7]} 15...
Nc4 {[%clk 0:01:56.6]} 16. Bf2 {[%clk 0:02:27.2]} 16... Qb6 {[%clk 0:01:54.1]}
17. Bxc4 {[%clk 0:02:18.2]} 17... dxc4 {[%clk 0:01:53]} 18. d5 {[%clk
0:02:18.3]} 18... Qa6 {[%clk 0:01:39.7]} 19. d6 {[%clk 0:02:04.2]} 19... h5
{[%clk 0:01:27.8]} 20. Na2 {[%clk 0:02:03.2]} 20... Bh6 {[%clk 0:01:22.8]} 21.
Be3 {[%clk 0:01:56.9]} 21... Bc6 {[%clk 0:01:16.8]} 22. Nc3 {[%clk 0:01:50.5]}
22... O-O {[%clk 0:01:10.8]} 23. Qe1 {[%clk 0:01:38.4]} 23... b5 {[%clk
0:01:01.7]} 24. Qh4 {[%clk 0:01:37.9]} 24... Qb7 {[%clk 0:00:55.9]} 25. Rf2
{[%clk 0:01:25.7]} 25... b4 {[%clk 0:00:51.9]} 26. axb4 {[%clk 0:01:20.8]} 26...
a3 {[%clk 0:00:47.4]} 27. bxa3 {[%clk 0:01:17.8]} 27... Rxa3 {[%clk 0:00:48.3]}
28. b5 {[%clk 0:01:10.6]} 28... Be4 {[%clk 0:00:45.3]} 29. Rd1 {[%clk
0:01:03.5]} 29... Ra1 {[%clk 0:00:36.5]} 30. Qe7 {[%clk 0:00:50]} 30... Rxd1+
{[%clk 0:00:33.4]} 31. Nxd1 {[%clk 0:00:50.9]} 31... Qxb5 {[%clk 0:00:27.9]} 32.
Nc3 {[%clk 0:00:45.6]} 32... Qa5 {[%clk 0:00:27.2]} 33. Nxe4 {[%clk 0:00:43.2]}
33... c3 {[%clk 0:00:15.6]} 34. d7 {[%clk 0:00:41.2]} 34... c2 {[%clk
0:00:13.9]} 35. Rxc2 {[%clk 0:00:40.1]} 35... Qa1+ {[%clk 0:00:04.6]} 36. Kf2
{[%clk 0:00:37.4]} 1-0

[Event "*** Titled Tuesday Blitz"]
[Site "Chess.com"]
[Date "2020.12.01"]
[Round "1"]
[White "vwnv7"]
[Black "Oleksandr_Bortnyk"]
[Result "0-1"]
[WhiteElo "2430"]
[BlackElo "2876"]
[TimeControl "180+1"]
[EndTime "10:06:49 PST"]
[Termination "Oleksandr_Bortnyk won on time"]

1. c4 {[%clk 0:03:00.9]} 1... Nf6 {[%clk 0:02:56]} 2. Nf3 {[%clk 0:02:59.9]}
2... b6 {[%clk 0:02:56.1]} 3. d4 {[%clk 0:02:58.7]} 3... Bb7 {[%clk 0:02:57]} 4.
g3 {[%clk 0:02:58.9]} 4... g6 {[%clk 0:02:57.4]} 5. Bg2 {[%clk 0:02:58.9]} 5...
Bg7 {[%clk 0:02:58.1]} 6. O-O {[%clk 0:02:58.9]} 6... O-O {[%clk 0:02:58.8]} 7.
Nc3 {[%clk 0:02:59]} 7... Ne4 {[%clk 0:02:59.4]} 8. Qc2 {[%clk 0:02:40.1]} 8...
Nxc3 {[%clk 0:02:58.7]} 9. bxc3 {[%clk 0:02:32]} 9... Nc6 {[%clk 0:02:59.2]} 10.
Bf4 {[%clk 0:02:26.3]} 10... d6 {[%clk 0:02:58.4]} 11. Rfd1 {[%clk 0:02:13.1]}
11... Qc8 {[%clk 0:02:58.5]} 12. Rab1 {[%clk 0:01:56.4]} 12... Na5 {[%clk
0:02:58.3]} 13. c5 {[%clk 0:01:55.9]} 13... dxc5 {[%clk 0:02:52.4]} 14. dxc5
{[%clk 0:01:53.3]} 14... bxc5 {[%clk 0:02:52.8]} 15. Rb5 {[%clk 0:01:40.8]}
15... Nc4 {[%clk 0:02:38.8]} 16. Rxc5 {[%clk 0:01:37.5]} 16... Nd6 {[%clk
0:02:39.1]} 17. Qa4 {[%clk 0:01:12.7]} 17... a5 {[%clk 0:01:54.3]} 18. Rb1
{[%clk 0:01:07.3]} 18... Ra6 {[%clk 0:01:33.9]} 19. Be5 {[%clk 0:00:53.5]} 19...
Bxf3 {[%clk 0:01:25.3]} 20. Bxf3 {[%clk 0:00:48.1]} 20... Qf5 {[%clk 0:01:24.7]}
21. Rd1 {[%clk 0:00:18.7]} 21... Bxe5 {[%clk 0:01:23.2]} 22. Rdd5 {[%clk
0:00:16.9]} 22... f6 {[%clk 0:01:10.9]} 23. Rxc7 {[%clk 0:00:16.8]} 23... Rf7
{[%clk 0:00:46.9]} 24. Rdc5 {[%clk 0:00:11.8]} 24... Kg7 {[%clk 0:00:46.7]} 25.
Bd5 {[%clk 0:00:10.7]} 25... e6 {[%clk 0:00:47.2]} 26. Rxf7+ {[%clk 0:00:09.8]}
26... Nxf7 {[%clk 0:00:48.1]} 27. Bc4 {[%clk 0:00:08.1]} 27... Qb1+ {[%clk
0:00:38.7]} 28. Kg2 {[%clk 0:00:07.4]} 28... Qb6 {[%clk 0:00:29.3]} 29. Rb5
{[%clk 0:00:04.6]} 29... Qc6+ {[%clk 0:00:29.8]} 30. f3 {[%clk 0:00:04.3]} 30...
Nd6 {[%clk 0:00:29.9]} 31. Rxa5 {[%clk 0:00:01.7]} 31... Qxa4 {[%clk 0:00:29.4]}
0-1

[Event "*** Titled Tuesday Blitz"]
[Site "Chess.com"]
[Date "2020.12.01"]
[Round "1"]
[White "kingofthenil"]
[Black "LastHeroJr"]
[Result "0-1"]
[WhiteElo "2755"]
[BlackElo "2416"]
[TimeControl "180+1"]
[EndTime "10:06:49 PST"]
[Termination "LastHeroJr won on time"]

1. d4 {[%clk 0:01:56.2]} 1... Nf6 {[%clk 0:02:59.7]} 2. c4 {[%clk 0:01:46.7]}
2... g6 {[%clk 0:03:00.1]} 3. Nc3 {[%clk 0:01:46.7]} 3... Bg7 {[%clk 0:03:00.6]}
4. Nf3 {[%clk 0:01:38.9]} 4... d6 {[%clk 0:03:00.9]} 5. Bg5 {[%clk 0:01:36.7]}
5... O-O {[%clk 0:03:00.2]} 6. e3 {[%clk 0:01:36.2]} 6... h6 {[%clk 0:03:00]} 7.
Bh4 {[%clk 0:01:35.4]} 7... g5 {[%clk 0:03:00.5]} 8. Bg3 {[%clk 0:01:33.2]} 8...
Nh5 {[%clk 0:03:00]} 9. Bd3 {[%clk 0:01:32.7]} 9... e6 {[%clk 0:03:00.1]} 10.
Nd2 {[%clk 0:01:27.2]} 10... Nxg3 {[%clk 0:02:59.2]} 11. hxg3 {[%clk 0:01:28.1]}
11... Na6 {[%clk 0:02:53]} 12. Qh5 {[%clk 0:01:24]} 12... c5 {[%clk 0:02:40.7]}
13. Nb3 {[%clk 0:00:50.5]} 13... f5 {[%clk 0:02:15.7]} 14. O-O-O {[%clk
0:00:49.1]} 14... Qf6 {[%clk 0:02:13.6]} 15. g4 {[%clk 0:00:46.2]} 15... Nb4
{[%clk 0:02:09.2]} 16. Bb1 {[%clk 0:00:44.2]} 16... cxd4 {[%clk 0:02:02.2]} 17.
Nxd4 {[%clk 0:00:41.3]} 17... f4 {[%clk 0:01:35.9]} 18. Ne4 {[%clk 0:00:16.6]}
18... Qe5 {[%clk 0:01:35.4]} 19. a3 {[%clk 0:00:14.7]} 19... Nc6 {[%clk
0:01:29.8]} 20. g3 {[%clk 0:00:14.9]} 20... fxe3 {[%clk 0:01:24.1]} 21. fxe3
{[%clk 0:00:14.4]} 21... d5 {[%clk 0:01:18.7]} 22. Nc3 {[%clk 0:00:09.9]} 22...
Qxe3+ {[%clk 0:01:18.1]} 23. Rd2 {[%clk 0:00:10.1]} 23... Nxd4 {[%clk
0:01:16.6]} 24. Qg6 {[%clk 0:00:07.9]} 24... Rf6 {[%clk 0:01:03.9]} 25. Qh7+
{[%clk 0:00:07.1]} 25... Kf8 {[%clk 0:01:04.3]} 26. Bc2 {[%clk 0:00:05.4]} 26...
Bd7 {[%clk 0:00:53.6]} 27. Kd1 {[%clk 0:00:02.7]} 27... Qf3+ {[%clk 0:00:50.9]}
28. Kc1 {[%clk 0:00:01.7]} 28... Qxh1+ {[%clk 0:00:50.9]} 29. Rd1 {[%clk
0:00:02.6]} 29... Qf3 {[%clk 0:00:45.7]} 30. Rxd4 {[%clk 0:00:02.6]} 30... Qe3+
{[%clk 0:00:46.1]} 31. Rd2 {[%clk 0:00:02.5]} 31... Rf1+ {[%clk 0:00:42.7]} 32.
Bd1 {[%clk 0:00:01.7]} 32... d4 {[%clk 0:00:35.2]} 0-1

[Event "*** Titled Tuesday Blitz"]
[Site "Chess.com"]
[Date "2020.12.01"]
[Round "1"]
[White "Gabrielian_Artur"]
[Black "Leo_C"]
[Result "1-0"]
[WhiteElo "2758"]
[BlackElo "2382"]
[TimeControl "180+1"]
[EndTime "10:06:49 PST"]
[Termination "Gabrielian_Artur won on time"]

1. e4 {[%clk 0:03:00.9]} 1... c6 {[%clk 0:02:59.2]} 2. d4 {[%clk 0:02:58.6]}
2... d5 {[%clk 0:02:59.1]} 3. Nd2 {[%clk 0:02:58.9]} 3... dxe4 {[%clk
0:02:58.6]} 4. Nxe4 {[%clk 0:02:59.1]} 4... Bf5 {[%clk 0:02:58.5]} 5. Ng3 {[%clk
0:02:59.1]} 5... Bg6 {[%clk 0:02:58.3]} 6. c3 {[%clk 0:02:59.2]} 6... Nf6 {[%clk
0:02:54.7]} 7. Nh3 {[%clk 0:02:58.8]} 7... e6 {[%clk 0:02:52.9]} 8. Nf4 {[%clk
0:02:58.6]} 8... Bd6 {[%clk 0:02:51.1]} 9. h4 {[%clk 0:02:58]} 9... Qc7 {[%clk
0:02:50.1]} 10. Qf3 {[%clk 0:02:57.7]} 10... Nbd7 {[%clk 0:02:32]} 11. h5 {[%clk
0:02:57.4]} 11... Bc2 {[%clk 0:02:31.5]} 12. h6 {[%clk 0:02:57]} 12... g5 {[%clk
0:02:28.3]} 13. Nfh5 {[%clk 0:02:53.9]} 13... Nxh5 {[%clk 0:02:03.7]} 14. Nxh5
{[%clk 0:02:51.9]} 14... O-O-O {[%clk 0:01:50.2]} 15. Bxg5 {[%clk 0:02:49.2]}
15... Rde8 {[%clk 0:01:43.8]} 16. Ng7 {[%clk 0:02:24.4]} 16... e5 {[%clk
0:01:19.2]} 17. Nxe8 {[%clk 0:02:23.9]} 17... Rxe8 {[%clk 0:01:18.2]} 18. Kd2
{[%clk 0:02:16.5]} 18... Bg6 {[%clk 0:01:13.7]} 19. Re1 {[%clk 0:02:14.8]} 19...
Qa5 {[%clk 0:01:06.2]} 20. Bc4 {[%clk 0:02:10.2]} 20... Rf8 {[%clk 0:00:51.9]}
21. Kc1 {[%clk 0:01:20.2]} 21... exd4 {[%clk 0:00:36.2]} 22. Bd2 {[%clk
0:01:18.4]} 22... Qc5 {[%clk 0:00:27.4]} 23. Bb3 {[%clk 0:01:14.1]} 23... Ne5
{[%clk 0:00:21.7]} 24. Qh3+ {[%clk 0:01:13.7]} 24... Kb8 {[%clk 0:00:17.8]} 25.
Rxe5 {[%clk 0:01:13.6]} 25... Bxe5 {[%clk 0:00:16.8]} 26. Re1 {[%clk 0:01:13.5]}
26... dxc3 {[%clk 0:00:16.5]} 27. bxc3 {[%clk 0:01:08.9]} 27... Qa3+ {[%clk
0:00:14]} 28. Kd1 {[%clk 0:01:09]} 28... Bf6 {[%clk 0:00:07.1]} 29. Qg3+ {[%clk
0:01:03]} 29... Ka8 {[%clk 0:00:06.4]} 30. Qf4 {[%clk 0:01:01.4]} 30... Bh5+
{[%clk 0:00:06.1]} 31. g4 {[%clk 0:01:00.9]} 31... Qb2 {[%clk 0:00:03.4]} 32.
Qxf6 {[%clk 0:00:47.6]} 32... Bxg4+ {[%clk 0:00:02]} 33. f3 {[%clk 0:00:48.1]}
33... Qb1+ {[%clk 0:00:02.3]} 34. Ke2 {[%clk 0:00:48.2]} 34... Re8+ {[%clk
0:00:02.5]} 35. Kf2 {[%clk 0:00:47.8]} 1-0

[Event "*** Titled Tuesday Blitz"]
[Site "Chess.com"]
[Date "2020.12.01"]
[Round "1"]
[White "JoachimMouhamad"]
[Black "BillieKimbah"]
[Result "0-1"]
[WhiteElo "2421"]
[BlackElo "2854"]
[TimeControl "180+1"]
[EndTime "10:06:53 PST"]
[Termination "BillieKimbah won by resignation"]

1. e4 {[%clk 0:02:54.6]} 1... c6 {[%clk 0:02:58.4]} 2. d4 {[%clk 0:02:53.8]}
2... d5 {[%clk 0:02:59.3]} 3. Nc3 {[%clk 0:02:53.8]} 3... dxe4 {[%clk
0:02:58.8]} 4. Nxe4 {[%clk 0:02:54]} 4... Nf6 {[%clk 0:02:59.5]} 5. Nxf6+ {[%clk
0:02:52.8]} 5... exf6 {[%clk 0:03:00.4]} 6. c3 {[%clk 0:02:52.5]} 6... Bd6
{[%clk 0:03:00.3]} 7. Bd3 {[%clk 0:02:51.2]} 7... O-O {[%clk 0:03:00]} 8. Ne2
{[%clk 0:02:51.5]} 8... Re8 {[%clk 0:02:59.8]} 9. O-O {[%clk 0:02:49.5]} 9...
Nd7 {[%clk 0:02:59.7]} 10. Bf4 {[%clk 0:02:43.8]} 10... Nf8 {[%clk 0:02:53.7]}
11. Qd2 {[%clk 0:02:37.5]} 11... Ng6 {[%clk 0:02:50.8]} 12. Bxd6 {[%clk
0:02:34.6]} 12... Qxd6 {[%clk 0:02:51.7]} 13. Rfe1 {[%clk 0:02:28.9]} 13... Bg4
{[%clk 0:02:49.4]} 14. Ng3 {[%clk 0:02:20.4]} 14... a5 {[%clk 0:02:35.8]} 15. a4
{[%clk 0:02:18.4]} 15... Be6 {[%clk 0:02:26.9]} 16. Nf5 {[%clk 0:02:12.1]} 16...
Qc7 {[%clk 0:02:25.3]} 17. g3 {[%clk 0:01:57.5]} 17... Rad8 {[%clk 0:02:23.7]}
18. Qc2 {[%clk 0:01:40.6]} 18... c5 {[%clk 0:02:21.9]} 19. Bb5 {[%clk
0:01:35.3]} 19... Rf8 {[%clk 0:02:15.6]} 20. Rad1 {[%clk 0:01:29.1]} 20... cxd4
{[%clk 0:02:10.1]} 21. Nxd4 {[%clk 0:01:19.2]} 21... Bd5 {[%clk 0:02:09.7]} 22.
f4 {[%clk 0:01:13.2]} 22... b6 {[%clk 0:02:05]} 23. Qf2 {[%clk 0:00:59.4]} 23...
Ba8 {[%clk 0:01:58.7]} 24. Bf1 {[%clk 0:00:54.5]} 24... h6 {[%clk 0:01:27.8]}
25. Bg2 {[%clk 0:00:54.6]} 25... Bxg2 {[%clk 0:01:25.9]} 26. Qxg2 {[%clk
0:00:55.5]} 26... Qc4 {[%clk 0:01:25.8]} 27. Qc2 {[%clk 0:00:50.4]} 27... Rfe8
{[%clk 0:01:23.7]} 28. Rxe8+ {[%clk 0:00:47.2]} 28... Rxe8 {[%clk 0:01:24.6]}
29. Qb3 {[%clk 0:00:45]} 29... Qc7 {[%clk 0:01:17.4]} 30. Qd5 {[%clk 0:00:42.4]}
30... Qe7 {[%clk 0:01:12.5]} 31. Nf5 {[%clk 0:00:28.7]} 31... Qe2 {[%clk
0:01:11.6]} 32. Qd2 {[%clk 0:00:25.6]} 32... Qg4 {[%clk 0:01:06.1]} 33. Ne3
{[%clk 0:00:22.8]} 33... Qf3 {[%clk 0:01:02.6]} 34. Re1 {[%clk 0:00:20.5]} 34...
h5 {[%clk 0:01:00.5]} 35. Nc2 {[%clk 0:00:20.6]} 35... Rxe1+ {[%clk 0:00:49.2]}
36. Nxe1 {[%clk 0:00:20.7]} 36... Qe4 {[%clk 0:00:49.5]} 37. Nd3 {[%clk
0:00:16.1]} 37... Qxa4 {[%clk 0:00:47.9]} 38. Qe3 {[%clk 0:00:14.1]} 38... h4
{[%clk 0:00:45.5]} 39. Qxb6 {[%clk 0:00:12.6]} 39... Qd1+ {[%clk 0:00:45.2]} 40.
Kf2 {[%clk 0:00:11.9]} 40... Qxd3 {[%clk 0:00:44.9]} 41. Qd8+ {[%clk 0:00:11.4]}
41... Qxd8 {[%clk 0:00:44.2]} 0-1